[Event "*** Titled Tuesday Blitz"]
[Site "Chess.com"]
[Date "2019.07.02"]
[Round "5"]
[White "Andrii_Prydun"]
[Black "NeverEverForever1990"]
[Result "1/2-1/2"]
[WhiteElo "2289"]
[BlackElo "2429"]
[TimeControl "180+2"]
[EndTime "14:12:35 PDT"]
[Termination "Game drawn by agreement"]

1. d4 {[%clk 0:03:01.9]} 1... Nf6 {[%clk 0:03:01.1]} 2. Nf3 {[%clk 0:03:01.6]}
2... g6 {[%clk 0:03:01.9]} 3. Bg5 {[%clk 0:03:02]} 3... Bg7 {[%clk 0:03:03.1]}
4. Nbd2 {[%clk 0:03:01.9]} 4... h6 {[%clk 0:03:04]} 5. Bh4 {[%clk 0:03:00.3]}
5... O-O {[%clk 0:03:03.6]} 6. e4 {[%clk 0:03:00.7]} 6... d5 {[%clk 0:03:04]} 7.
e5 {[%clk 0:02:57]} 7... Ne4 {[%clk 0:02:59.7]} 8. Bd3 {[%clk 0:02:57]} 8... Bf5
{[%clk 0:02:59.3]} 9. O-O {[%clk 0:02:53.4]} 9... c5 {[%clk 0:02:48.2]} 10. Re1
{[%clk 0:02:48.5]} 10... Nxd2 {[%clk 0:02:47.1]} 11. Qxd2 {[%clk 0:02:48.6]}
11... Bxd3 {[%clk 0:02:47.8]} 12. cxd3 {[%clk 0:02:43.6]} 12... cxd4 {[%clk
0:02:40.3]} 13. Nxd4 {[%clk 0:02:44.4]} 13... Nc6 {[%clk 0:02:40.7]} 14. Nxc6
{[%clk 0:02:44.6]} 14... bxc6 {[%clk 0:02:40.4]} 15. Rac1 {[%clk 0:02:40.9]}
15... Qd7 {[%clk 0:02:40.7]} 16. d4 {[%clk 0:02:35.8]} 16... g5 {[%clk
0:02:32.4]} 17. Bg3 {[%clk 0:02:34.3]} 17... f5 {[%clk 0:02:33.8]} 18. f4 {[%clk
0:02:25.8]} 18... g4 {[%clk 0:02:26.7]} 19. Rc5 {[%clk 0:02:25.1]} 19... e6
{[%clk 0:02:25.9]} 20. Rec1 {[%clk 0:02:24.8]} 20... Rfc8 {[%clk 0:02:26.6]} 21.
Qc2 {[%clk 0:02:22.6]} 21... Rab8 {[%clk 0:02:20.6]} 22. b3 {[%clk 0:02:14.8]}
22... Rb6 {[%clk 0:02:19.3]} 23. Ra5 {[%clk 0:01:43.9]} 23... Bf8 {[%clk
0:02:14.7]} 24. Be1 {[%clk 0:01:41.5]} 24... Qb7 {[%clk 0:02:12.7]} 25. Ra4
{[%clk 0:01:28.4]} 25... Ra6 {[%clk 0:02:11.9]} 26. Rxa6 {[%clk 0:01:00]} 26...
Qxa6 {[%clk 0:02:13.8]} 27. b4 {[%clk 0:00:42.4]} 27... h5 {[%clk 0:02:05.3]}
28. Qb2 {[%clk 0:00:24.5]} 28... Qb6 {[%clk 0:02:01.7]} 29. Qc3 {[%clk
0:00:21.5]} 29... Be7 {[%clk 0:01:56.7]} 30. a3 {[%clk 0:00:21.8]} 30... Kf7
{[%clk 0:01:56.7]} 31. Bf2 {[%clk 0:00:15.2]} 31... h4 {[%clk 0:01:57.7]} 32.
Qb3 {[%clk 0:00:15.3]} 32... a5 {[%clk 0:01:53.5]} 33. Qa4 {[%clk 0:00:06.6]}
33... axb4 {[%clk 0:01:54.3]} 34. axb4 {[%clk 0:00:07.5]} 34... Qxb4 {[%clk
0:01:55.1]} 35. Qxb4 {[%clk 0:00:06]} 35... Bxb4 {[%clk 0:01:55.5]} 36. Bxh4
{[%clk 0:00:07]} 36... c5 {[%clk 0:01:56.8]} 37. dxc5 {[%clk 0:00:06.4]} 37...
d4 {[%clk 0:01:52.8]} 38. Bf2 {[%clk 0:00:05.2]} 38... d3 {[%clk 0:01:51.7]} 39.
Rb1 {[%clk 0:00:05.8]} 39... Bxc5 {[%clk 0:01:45.7]} 40. Rb7+ {[%clk 0:00:05.8]}
40... Kg6 {[%clk 0:01:46.5]} 41. Rd7 {[%clk 0:00:06.5]} 41... Bxf2+ {[%clk
0:01:45.3]} 42. Kxf2 {[%clk 0:00:07.2]} 42... Rc2+ {[%clk 0:01:46.9]} 43. Kg3
{[%clk 0:00:06.4]} 43... Rc3 {[%clk 0:01:46]} 44. Kh4 {[%clk 0:00:06.3]} 44...
Rc2 {[%clk 0:01:40.4]} 45. Kg3 {[%clk 0:00:05.4]} 45... d2 {[%clk 0:01:41.8]}
46. Rd6 {[%clk 0:00:05.4]} 46... Kf7 {[%clk 0:01:42.3]} 47. h3 {[%clk
0:00:04.3]} 47... gxh3 {[%clk 0:01:42.5]} 48. Kxh3 {[%clk 0:00:05.4]} 48... Ke7
{[%clk 0:01:40.5]} 49. g3 {[%clk 0:00:06.2]} 49... Ra2 {[%clk 0:01:40.4]} 50.
Kh4 {[%clk 0:00:06.8]} 50... Kf7 {[%clk 0:01:37.2]} 51. Kg5 {[%clk 0:00:07]}
51... Ke7 {[%clk 0:01:37.5]} 52. Kg6 {[%clk 0:00:07.2]} 52... Rc2 {[%clk
0:01:32.6]} 53. Kg5 {[%clk 0:00:06.1]} 53... Rb2 {[%clk 0:01:28.6]} 54. g4
{[%clk 0:00:06.4]} 54... Rb1 {[%clk 0:01:15.3]} 55. Rxd2 {[%clk 0:00:05.8]}
55... Rg1 {[%clk 0:01:16.2]} 56. Ra2 {[%clk 0:00:04.6]} 56... Rxg4+ {[%clk
0:01:16.9]} 57. Kh6 {[%clk 0:00:04.8]} 57... Rxf4 {[%clk 0:01:17.7]} 58. Ra7+
{[%clk 0:00:05.7]} 58... Ke8 {[%clk 0:01:18.7]} 59. Kg6 {[%clk 0:00:06.6]} 59...
Rc4 {[%clk 0:01:17.3]} 60. Kf6 {[%clk 0:00:07.2]} 60... Rc6 {[%clk 0:01:18.4]}
61. Re7+ {[%clk 0:00:04.7]} 61... Kd8 {[%clk 0:01:19.5]} 62. Rh7 {[%clk
0:00:05]} 62... Kc8 {[%clk 0:01:17.8]} 63. Re7 {[%clk 0:00:04.9]} 63... Kd8
{[%clk 0:01:14.1]} 64. Rh7 {[%clk 0:00:04.9]} 64... Rb6 {[%clk 0:01:15.5]} 65.
Rh4 {[%clk 0:00:04.8]} 65... Kd7 {[%clk 0:01:15.3]} 66. Rd4+ {[%clk 0:00:05.7]}
66... Ke8 {[%clk 0:01:15.2]} 67. Rh4 {[%clk 0:00:05.9]} 67... Ra6 {[%clk
0:01:14.5]} 68. Rh8+ {[%clk 0:00:06.6]} 68... Kd7 {[%clk 0:01:15.8]} 69. Rh7+
{[%clk 0:00:07.8]} 69... Kc8 {[%clk 0:01:13.9]} 70. Re7 {[%clk 0:00:08.2]} 70...
f4 {[%clk 0:01:12.7]} 71. Rf7 {[%clk 0:00:08.5]} 71... Kd8 {[%clk 0:01:06.4]}
72. Kg5 {[%clk 0:00:09.1]} 72... Ra5 {[%clk 0:01:00]} 73. Kxf4 {[%clk
0:00:08.7]} 73... Ke8 {[%clk 0:00:59.1]} 74. Rb7 {[%clk 0:00:08.4]} 74... Rc5
{[%clk 0:00:58.7]} 75. Rh7 {[%clk 0:00:07]} 75... Kf8 {[%clk 0:00:58.1]} 76. Rd7
{[%clk 0:00:07]} 76... Ke8 {[%clk 0:00:58.4]} 77. Ra7 {[%clk 0:00:07.1]} 77...
Rd5 {[%clk 0:00:58.9]} 78. Rb7 {[%clk 0:00:06.8]} 78... Rd7 {[%clk 0:00:52.8]}
79. Rb6 {[%clk 0:00:06.7]} 79... Rf7+ {[%clk 0:00:50.2]} 80. Ke4 {[%clk
0:00:06.1]} 80... Re7 {[%clk 0:00:50.3]} 81. Kf4 {[%clk 0:00:06.1]} 81... Kf7
{[%clk 0:00:49.5]} 82. Rb8 {[%clk 0:00:05.6]} 82... Ra7 {[%clk 0:00:48.3]} 83.
Rh8 {[%clk 0:00:05.9]} 83... Kg7 {[%clk 0:00:48.5]} 84. Re8 {[%clk 0:00:06.4]}
84... Kf7 {[%clk 0:00:46.9]} 85. Rh8 {[%clk 0:00:06.7]} 85... Rd7 {[%clk
0:00:39.3]} 86. Rh7+ {[%clk 0:00:06.5]} 86... Ke8 {[%clk 0:00:40.7]} 87. Rh6
{[%clk 0:00:06.8]} 87... Ke7 {[%clk 0:00:39.6]} 88. Kg5 {[%clk 0:00:06.9]} 88...
Rd1 {[%clk 0:00:25.8]} 89. Rh7+ {[%clk 0:00:07]} 89... Ke8 {[%clk 0:00:22.3]}
90. Kf6 {[%clk 0:00:07.8]} 90... Ra1 {[%clk 0:00:23.2]} 91. Rh8+ {[%clk
0:00:05.8]} 91... Kd7 {[%clk 0:00:24]} 92. Rh7+ {[%clk 0:00:06.7]} 92... Ke8
{[%clk 0:00:25.2]} 93. Re7+ {[%clk 0:00:07.5]} 93... Kf8 {[%clk 0:00:25.7]} 94.
Rb7 {[%clk 0:00:06.4]} 94... Ke8 {[%clk 0:00:25.4]} 95. Rb6 {[%clk 0:00:06.7]}
95... Kd7 {[%clk 0:00:24.3]} 96. Rd6+ {[%clk 0:00:06.8]} 96... Ke8 {[%clk
0:00:23]} 97. Rxe6+ {[%clk 0:00:07.3]} 97... Kf8 {[%clk 0:00:24.5]} 98. Rb6
{[%clk 0:00:06.5]} 98... Ra8 {[%clk 0:00:18.4]} 99. e6 {[%clk 0:00:05.6]} 99...
Ke8 {[%clk 0:00:19.7]} 100. Rb7 {[%clk 0:00:04.7]} 100... Kf8 {[%clk 0:00:20.2]}
101. Rh7 {[%clk 0:00:05.1]} 101... Kg8 {[%clk 0:00:21.6]} 102. Rg7+ {[%clk
0:00:05.9]} 102... Kf8 {[%clk 0:00:22.8]} 103. Rf7+ {[%clk 0:00:06]} 103... Kg8
{[%clk 0:00:23.7]} 104. Rc7 {[%clk 0:00:05.8]} 104... Kf8 {[%clk 0:00:21.4]}
105. Rd7 {[%clk 0:00:04.5]} 105... Rb8 {[%clk 0:00:20.9]} 106. Rh7 {[%clk
0:00:04]} 106... Kg8 {[%clk 0:00:22.1]} 107. Rc7 {[%clk 0:00:04]} 107... Kf8
{[%clk 0:00:22.2]} 108. Rd7 {[%clk 0:00:04.4]} 108... Ra8 {[%clk 0:00:22.8]}
109. Rf7+ {[%clk 0:00:04.3]} 109... Kg8 {[%clk 0:00:21.6]} 110. Rb7 {[%clk
0:00:03.7]} 110... Kf8 {[%clk 0:00:22.4]} 1/2-1/2

[Event "*** Titled Tuesday Blitz"]
[Site "Chess.com"]
[Date "2019.07.02"]
[Round "5"]
[White "GMKrikor"]
[Black "RitvarsReimanis"]
[Result "1/2-1/2"]
[WhiteElo "2722"]
[BlackElo "2586"]
[TimeControl "180+2"]
[EndTime "14:12:44 PDT"]
[Termination "Game drawn by 50-move rule"]

1. Nf3 {[%clk 0:03:01.9]} 1... Nf6 {[%clk 0:03:00.3]} 2. c4 {[%clk 0:03:02.7]}
2... e6 {[%clk 0:03:02.2]} 3. e3 {[%clk 0:03:01.5]} 3... d5 {[%clk 0:03:04.1]}
4. d4 {[%clk 0:02:59.2]} 4... Be7 {[%clk 0:03:05.5]} 5. Bd3 {[%clk 0:02:58.5]}
5... O-O {[%clk 0:03:06.9]} 6. O-O {[%clk 0:02:59.8]} 6... dxc4 {[%clk
0:03:05.8]} 7. Bxc4 {[%clk 0:03:01]} 7... c5 {[%clk 0:03:02.2]} 8. Nc3 {[%clk
0:03:02.2]} 8... Nc6 {[%clk 0:03:02.2]} 9. a3 {[%clk 0:02:46.2]} 9... a6 {[%clk
0:03:02.4]} 10. Ba2 {[%clk 0:02:45.1]} 10... b5 {[%clk 0:02:59.3]} 11. dxc5
{[%clk 0:02:36.3]} 11... Bxc5 {[%clk 0:02:54.2]} 12. Qc2 {[%clk 0:02:36.7]}
12... Qb6 {[%clk 0:02:49.2]} 13. Ng5 {[%clk 0:02:26.5]} 13... Be7 {[%clk
0:02:31.7]} 14. Bd2 {[%clk 0:01:54.7]} 14... Bb7 {[%clk 0:02:26.7]} 15. Rac1
{[%clk 0:01:52.3]} 15... Ne5 {[%clk 0:02:23.4]} 16. Bb1 {[%clk 0:01:18.2]} 16...
Ng6 {[%clk 0:02:21.4]} 17. Qd1 {[%clk 0:01:12.1]} 17... Rad8 {[%clk 0:02:19.1]}
18. Qe2 {[%clk 0:01:13]} 18... Rd7 {[%clk 0:02:08.4]} 19. Nce4 {[%clk
0:01:01.7]} 19... Nxe4 {[%clk 0:01:58.2]} 20. Nxe4 {[%clk 0:01:02.6]} 20... Bxe4
{[%clk 0:01:54.4]} 21. Bxe4 {[%clk 0:01:03.1]} 21... Bf6 {[%clk 0:01:55.8]} 22.
Bb4 {[%clk 0:00:59]} 22... Rfd8 {[%clk 0:01:53.9]} 23. Rc6 {[%clk 0:00:59.1]}
23... Qa7 {[%clk 0:01:51.1]} 24. Bc5 {[%clk 0:00:56.1]} 24... Qb8 {[%clk
0:01:48.4]} 25. Rxa6 {[%clk 0:00:45]} 25... Rd2 {[%clk 0:01:48.2]} 26. Qf3
{[%clk 0:00:40.3]} 26... Bxb2 {[%clk 0:01:30.8]} 27. Bb6 {[%clk 0:00:26.2]}
27... Rf8 {[%clk 0:01:25.3]} 28. Bc5 {[%clk 0:00:23.4]} 28... Rfd8 {[%clk
0:01:23.6]} 29. g3 {[%clk 0:00:12.2]} 29... f5 {[%clk 0:01:05.8]} 30. Bb1 {[%clk
0:00:07.2]} 30... Qc8 {[%clk 0:01:03.8]} 31. Qc6 {[%clk 0:00:04.9]} 31... Kf7
{[%clk 0:00:41.2]} 32. Qxc8 {[%clk 0:00:05.1]} 32... Rxc8 {[%clk 0:00:42]} 33.
Bb4 {[%clk 0:00:07]} 33... Bc3 {[%clk 0:00:38.8]} 34. Rc1 {[%clk 0:00:04.4]}
34... Bxb4 {[%clk 0:00:40.1]} 35. Rxc8 {[%clk 0:00:05.2]} 35... Rd1+ {[%clk
0:00:39]} 36. Kg2 {[%clk 0:00:06.6]} 36... Rxb1 {[%clk 0:00:40]} 37. axb4 {[%clk
0:00:07.8]} 37... Rxb4 {[%clk 0:00:41.9]} 38. Rc7+ {[%clk 0:00:05.1]} 38... Kf6
{[%clk 0:00:42.8]} 39. Raa7 {[%clk 0:00:05.4]} 39... Ne5 {[%clk 0:00:40.7]} 40.
Rxg7 {[%clk 0:00:05.8]} 40... Rb2 {[%clk 0:00:39.6]} 41. h3 {[%clk 0:00:07.3]}
41... Nd3 {[%clk 0:00:39.8]} 42. Raf7+ {[%clk 0:00:07.9]} 42... Ke5 {[%clk
0:00:41]} 43. g4 {[%clk 0:00:07.2]} 43... Nxf2 {[%clk 0:00:41]} 44. gxf5 {[%clk
0:00:06.2]} 44... exf5 {[%clk 0:00:39.6]} 45. Rxh7 {[%clk 0:00:04.2]} 45... Ne4+
{[%clk 0:00:38.1]} 46. Kg1 {[%clk 0:00:03.7]} 46... Rb1+ {[%clk 0:00:38]} 47.
Kg2 {[%clk 0:00:05.2]} 47... Rb2+ {[%clk 0:00:39.4]} 48. Kf1 {[%clk 0:00:06.8]}
48... Ng3+ {[%clk 0:00:24.2]} 49. Ke1 {[%clk 0:00:07.9]} 49... Ke4 {[%clk
0:00:25.7]} 50. Kd1 {[%clk 0:00:07.1]} 50... Kxe3 {[%clk 0:00:24.5]} 51. Kc1
{[%clk 0:00:05.2]} 51... Rb4 {[%clk 0:00:22.9]} 52. Kc2 {[%clk 0:00:04.6]} 52...
f4 {[%clk 0:00:19]} 53. Rhg7 {[%clk 0:00:04.8]} 53... Rc4+ {[%clk 0:00:19.5]}
54. Kb3 {[%clk 0:00:05.4]} 54... Ne4 {[%clk 0:00:19.8]} 55. h4 {[%clk 0:00:07]}
55... f3 {[%clk 0:00:17.7]} 56. h5 {[%clk 0:00:08.3]} 56... f2 {[%clk
0:00:14.8]} 57. h6 {[%clk 0:00:08.2]} 57... f1=Q {[%clk 0:00:14.6]} 58. Rxf1
{[%clk 0:00:08.8]} 58... Nd2+ {[%clk 0:00:15.8]} 59. Kb2 {[%clk 0:00:09.1]}
59... Nxf1 {[%clk 0:00:17.7]} 60. Re7+ {[%clk 0:00:05.6]} 60... Kf2 {[%clk
0:00:15.4]} 61. Rb7 {[%clk 0:00:03.5]} 61... Rc5 {[%clk 0:00:12.9]} 62. h7
{[%clk 0:00:03.8]} 62... Rh5 {[%clk 0:00:14]} 63. h8=Q {[%clk 0:00:05.3]} 63...
Rxh8 {[%clk 0:00:14.8]} 64. Rxb5 {[%clk 0:00:07.2]} 64... Ne3 {[%clk 0:00:16]}
65. Kc3 {[%clk 0:00:07.8]} 65... Ke2 {[%clk 0:00:17.4]} 66. Re5 {[%clk
0:00:08.7]} 66... Rc8+ {[%clk 0:00:18.5]} 67. Kb3 {[%clk 0:00:05.9]} 67... Kd3
{[%clk 0:00:18.7]} 68. Kb4 {[%clk 0:00:06.5]} 68... Kd4 {[%clk 0:00:17.1]} 69.
Rh5 {[%clk 0:00:07.2]} 69... Rb8+ {[%clk 0:00:18]} 70. Ka4 {[%clk 0:00:06.1]}
70... Nd5 {[%clk 0:00:17.1]} 71. Rh4+ {[%clk 0:00:07.2]} 71... Kc5 {[%clk
0:00:17.2]} 72. Ka3 {[%clk 0:00:08.7]} 72... Rb1 {[%clk 0:00:17.4]} 73. Rh8
{[%clk 0:00:07.2]} 73... Kd4 {[%clk 0:00:16]} 74. Rh4+ {[%clk 0:00:07.1]} 74...
Kd3 {[%clk 0:00:16.1]} 75. Rh3+ {[%clk 0:00:08.7]} 75... Ne3 {[%clk 0:00:17.2]}
76. Ka4 {[%clk 0:00:10.3]} 76... Rb8 {[%clk 0:00:17.3]} 77. Ka5 {[%clk
0:00:10.9]} 77... Kd4 {[%clk 0:00:18.5]} 78. Rh4+ {[%clk 0:00:11.9]} 78... Kc3
{[%clk 0:00:18.4]} 79. Rh3 {[%clk 0:00:10.9]} 79... Kd3 {[%clk 0:00:19.5]} 80.
Ka6 {[%clk 0:00:10.4]} 80... Kd4 {[%clk 0:00:19.8]} 81. Ka7 {[%clk 0:00:11.5]}
81... Rb3 {[%clk 0:00:19.8]} 82. Ka6 {[%clk 0:00:11.2]} 82... Ra3+ {[%clk
0:00:19.7]} 83. Kb7 {[%clk 0:00:10.3]} 83... Rb3+ {[%clk 0:00:20.6]} 84. Kc6
{[%clk 0:00:10.7]} 84... Rc3+ {[%clk 0:00:21.4]} 85. Kd7 {[%clk 0:00:11.4]}
85... Ra3 {[%clk 0:00:19.2]} 86. Ke6 {[%clk 0:00:09.5]} 86... Ra6+ {[%clk
0:00:19.2]} 87. Kf7 {[%clk 0:00:10.4]} 87... Nf5 {[%clk 0:00:17.8]} 88. Rh1
{[%clk 0:00:11.3]} 88... Ne3 {[%clk 0:00:16.8]} 89. Rh5 {[%clk 0:00:09.9]} 89...
Ke4 {[%clk 0:00:16.8]} 90. Rb5 {[%clk 0:00:08.4]} 90... Nd5 {[%clk 0:00:16.5]}
91. Rb1 {[%clk 0:00:09.6]} 91... Ra7+ {[%clk 0:00:17.2]} 92. Ke6 {[%clk
0:00:07.6]} 92... Nf4+ {[%clk 0:00:16.7]} 93. Kd6 {[%clk 0:00:08.3]} 93... Ra8
{[%clk 0:00:17.5]} 94. Rb4+ {[%clk 0:00:07.7]} 94... Ke3 {[%clk 0:00:18.2]} 95.
Rb3+ {[%clk 0:00:09.2]} 95... Nd3 {[%clk 0:00:19.6]} 96. Ke7 {[%clk 0:00:10.4]}
96... Kd4 {[%clk 0:00:20]} 97. Rb1 {[%clk 0:00:10.9]} 97... Ra7+ {[%clk
0:00:21]} 98. Kf6 {[%clk 0:00:11.6]} 98... Ra6+ {[%clk 0:00:20.2]} 99. Ke7
{[%clk 0:00:12.6]} 99... Nc5 {[%clk 0:00:20.5]} 100. Rd1+ {[%clk 0:00:12.7]}
100... Ke5 {[%clk 0:00:21.9]} 101. Re1+ {[%clk 0:00:13.3]} 101... Ne4 {[%clk
0:00:23.2]} 102. Kd7 {[%clk 0:00:14.9]} 102... Rd6+ {[%clk 0:00:22.6]} 103. Kc7
{[%clk 0:00:15.9]} 103... Rd2 {[%clk 0:00:23.1]} 104. Rh1 {[%clk 0:00:15.3]}
104... Nf6 {[%clk 0:00:21.1]} 105. Re1+ {[%clk 0:00:11.7]} 105... Kd5 {[%clk
0:00:22.1]} 106. Rc1 {[%clk 0:00:10.7]} 106... Ne4 {[%clk 0:00:22.2]} 107. Rh1
{[%clk 0:00:08.7]} 107... Rc2+ {[%clk 0:00:21.4]} 108. Kd7 {[%clk 0:00:09.5]}
108... Nf6+ {[%clk 0:00:19.1]} 109. Ke7 {[%clk 0:00:09.7]} 109... Ne4 {[%clk
0:00:18.6]} 110. Kd7 {[%clk 0:00:11.2]} 110... Ra2 {[%clk 0:00:19.1]} 111. Rh5+
{[%clk 0:00:11.6]} 111... Kc4 {[%clk 0:00:20.3]} 112. Rh1 {[%clk 0:00:13.1]}
112... Kd4 {[%clk 0:00:21.1]} 113. Kc6 {[%clk 0:00:12.8]} 113... Rc2+ {[%clk
0:00:21.4]} 114. Kd7 {[%clk 0:00:13.5]} 1/2-1/2